bitfinex/quotes_SOLUSD_20220118
["timestamp","ask_amount","ask_price","bid_price","bid_amount"]
[1642521140483,52.82100074,137.11,137.05,0.25]
[1642521141087,10.9431,137.11,137.05,41.15310617]
[1642521141381,10.9431,137.11,137.05,42.87247725]
[1642521141582,10.9431,137.11,137.05,53.81647725]
[1642521143682,10.9431,137.11,137.05,11.194]
[1642521143882,10.9431,137.11,137.05,10.944]
[1642521144084,0.25,137.1,137.04,2.916]
[1642521144289,10.9462,137.09,137.03,24.3756]
[1642521144585,48.03104706,137.08,137.01,29.76253135]
[1642521144788,48.28104706,137.08,137.01,4.81573135]
[1642521145182,10.9467,137.07,137.01,15.76323135]
[1642521145383,10.9467,137.07,137.01,26.28323135]
[1642521145585,10.9467,137.07,137.02,0.25]
[1642521145984,2.05473332,137.11,137.03,1.71937108]
[1642521146185,2.05473332,137.11,137.04,0.25]
[1642521146385,10.9443,137.1,137.05,10.944]
[1642521146584,2.05473332,137.11,137.05,10.944]
[1642521146784,2.05473332,137.11,137.06,0.25]
[1642521146987,38.49441199,137.1,137.03,2.918]
[1642521147311,10.9454,137.09,137.03,10.9454]
[1642521147688,0.25,137.08,137.03,10.9454]
[1642521148589,11.1962,137.08,137.02,10.9467]
[1642521148785,37.06981585,137.07,137.02,16.9467]
[1642521149485,22.8859,137.09,137.03,0.25]
[1642521150486,10.9467,137.07,137.03,0.25]
[1642521150688,10.9467,137.07,137.03,41.26582762]
[1642521151087,58.51106268,137.09,137.03,41.26582762]
[1642521151288,22.8859,137.09,137.03,52.21162762]
[1642521151888,22.6359,137.09,137.03,52.21162762]
[1642521152396,2.05473332,137.11,137.03,53.9309987]
[1642521152689,2.05473332,137.11,137.06,10.9417]
[1642521152888,2.05473332,137.12,137.07,38.37916776]
[1642521153088,2.05473332,137.12,137.07,38.62916776]
[1642521153595,2.05473332,137.12,137.07,0.25]
[1642521154195,2.05473332,137.12,137.06,10.52]
[1642521154395,23.4551,137.13,137.06,13.436]
[1642521154597,23.4551,137.13,137.07,0.25]
[1642521154820,2.05473332,137.14,137.07,11.1922]
[1642521155022,2.05473332,137.14,137.08,10.52]
[1642521155220,2.05473332,137.14,137.09,0.25]
[1642521155418,2.05473332,137.14,137.09,10.77]
[1642521155818,2.05473332,137.14,137.11,10.9393]
[1642521156619,47.43922847,137.16,137.11,10.9393]
[1642521158221,2.916,137.15,137.09,0.25]
[1642521158623,0.25,137.14,137.08,2.916]
[1642521158822,2.916,137.13,137.05,2.916]
[1642521159224,0.25,137.12,137.03,2.916]
[1642521159427,0.25,137.12,137.03,8.916]
[1642521159630,10.944,137.11,137.03,45.64350725]
[1642521161429,10.944,137.11,137.04,10.9449]
[1642521162026,10.944,137.11,137.05,0.25]
[1642521163626,8.28625496,137.11,137.05,0.25]
[1642521166029,8.28625496,137.11,137.04,10.9449]
[1642521166230,0.25,137.1,137.04,10.9449]
[1642521166435,45.88590975,137.09,137.04,10.9449]
[1642521167131,0.25,137.08,137.03,2.916]
[1642521167532,3.168,137.08,137.03,2.916]
[1642521168032,14.1147,137.08,137.03,2.916]
[1642521168231,14.1147,137.08,136.99,4.81573135]
[1642521168432,36.6991,137.08,137.0,6.0]
[1642521168632,33.7811,137.08,137.0,6.25]
[1642521169433,33.7811,137.08,137.01,10.9474]
[1642521169835,33.7811,137.08,137.02,0.25]
[1642521171134,33.5311,137.08,137.02,11.1966]
[1642521171339,22.5844,137.08,137.03,41.46391359]
[1642521171535,2.05473332,137.1,137.03,41.71391359]
[1642521171735,2.05473332,137.1,137.04,6.0]
[1642521171938,2.05473332,137.1,137.04,7.71678521]
[1642521172137,2.05473332,137.1,137.05,0.25]
[1642521172337,40.24856336,137.1,137.05,10.944]
[1642521172536,40.24856336,137.1,137.0,24.70438521]
[1642521172740,38.19383004,137.1,137.01,12.66773135]
[1642521173344,3.168,137.09,137.01,2.14773135]
[1642521173567,10.9473,137.07,137.01,13.09503135]
[1642521173738,41.00336557,137.06,137.01,11.1973]
[1642521173940,10.9473,137.07,137.01,11.1973]
[1642521174143,2.918,137.1,137.01,11.1973]
[1642521174442,2.05473332,137.11,137.04,10.943]
[1642521174642,2.05473332,137.11,137.05,2.918]
[1642521174848,2.05473332,137.11,137.05,0.25]
[1642521175042,44.96519904,137.11,137.06,2.918]
[1642521175241,44.96519904,137.11,137.07,0.25]
[1642521175445,44.96519904,137.11,137.08,10.9419]
[1642521175742,3.03219997,137.1,137.08,10.9419]
[1642521176043,3.03219997,137.09,137.07,0.25]
[1642521176244,3.03219997,137.09,137.06,2.918]
[1642521176843,41.17140613,137.08,137.04,10.945]
[1642521177643,52.11750613,137.08,137.0,2.918]
[1642521177845,0.25,137.07,136.99,51.82273135]
[1642521178046,0.25,137.07,136.99,15.33573135]
[1642521178243,0.25,137.07,137.0,0.25]
[1642521178644,0.25,137.07,136.99,13.438]
[1642521178844,10.9476,137.06,136.99,2.918]
[1642521179044,13.8666,137.06,136.97,37.33193135]
[1642521179247,0.25,137.05,136.97,37.33193135]
[1642521179443,2.919,137.04,136.97,37.33193135]
[1642521179644,37.81438037,137.03,136.97,12.41773135]
[1642521179855,37.81438037,137.03,136.97,10.52]
[1642521180047,37.81438037,137.03,136.98,6.0]
[1642521180246,37.81438037,137.03,136.98,17.1999]
[1642521180447,10.9491,137.04,136.98,58.606881]
[1642521180748,0.25,137.05,136.98,58.606881]
[1642521180953,0.25,137.05,136.98,52.606881]
[1642521181249,2.919,137.06,136.98,52.606881]
[1642521181449,46.411,137.07,136.98,52.606881]
[1642521181450,91.67375184,137.07,136.98,52.606881]
[1642521181651,88.75475184,137.07,136.98,52.606881]
[1642521182151,0.25,137.06,136.98,52.606881]
[1642521182451,99.70125184,137.07,137.01,10.9471]
[1642521182852,99.70125184,137.07,137.02,0.25]
[1642521183152,0.25,137.06,136.99,2.918]
[1642521183358,0.25,137.06,136.98,67.513481]
[1642521183652,2.919,137.05,137.0,10.9482]
[1642521183852,2.919,137.05,137.01,44.76474024]
[1642521184053,2.919,137.06,137.01,45.01474024]
[1642521184252,2.05473332,137.1,137.02,2.918]
[1642521184651,2.05473332,137.1,137.03,0.25]
[1642521184852,12.99903332,137.1,137.05,10.944]
[1642521185052,12.99903332,137.1,137.06,41.406981]
[1642521185254,2.05473332,137.1,137.06,41.656981]
[1642521185453,2.05473332,137.1,137.06,47.512981]
[1642521185852,25.29093332,137.13,137.06,47.512981]
[1642521186056,25.29093332,137.13,137.07,6.0]
[1642521186253,2.05473332,137.13,137.08,0.25]
[1642521186956,6.17491834,137.16,137.08,85.65728521]
[1642521187153,2.05473332,137.16,137.09,10.52]
[1642521187357,2.05473332,137.16,137.1,72.75]
[1642521187553,2.05473332,137.16,137.11,46.963089]
[1642521187753,2.05473332,137.16,137.12,0.25]
[1642521187953,2.05473332,137.16,137.12,8.952]
[1642521188155,40.54524969,137.16,137.13,10.9362]
[1642521188354,38.49051637,137.16,137.13,16.9362]
[1642521189091,6.06439994,137.15,137.13,6.0]
[1642521189487,6.06439994,137.15,137.1,6.0]
[1642521189693,6.06439994,137.15,137.07,16.52]
[1642521189992,6.06439994,137.15,137.08,2.916]
[1642521190388,6.06439994,137.15,137.09,6.0]
[1642521190588,17.00459994,137.15,137.1,10.9402]
[1642521191093,17.00459994,137.15,137.09,6.0]
[1642521191291,17.00459994,137.15,137.1,0.25]
[1642521192692,17.00459994,137.15,137.1,6.25]
[1642521192890,6.06439994,137.15,137.1,17.1903]
[1642521193091,51.48464969,137.16,137.1,23.9583]
[1642521193092,2.05473332,137.16,137.1,23.9583]
[1642521193694,2.05473332,137.16,137.11,2.916]
[1642521194090,2.05473332,137.16,137.12,52.64481844]
[1642521194294,2.05473332,137.16,137.13,2.916]
[1642521194490,2.05473332,137.2,137.14,6.0]
[1642521194690,40.79302826,137.19,137.14,6.25]
[1642521195491,40.79302826,137.19,137.1,37.9639]
[1642521195492,3.166,137.18,137.1,37.9639]
[1642521195692,3.166,137.18,137.11,0.25]
[1642521196090,5.22073332,137.18,137.11,0.25]
[1642521196992,5.22073332,137.18,137.1,0.25]
[1642521197191,10.9392,137.17,137.09,6.0]
[1642521197391,2.916,137.16,137.09,6.0]
[1642521197591,3.166,137.16,137.08,2.916]
[1642521197991,42.6906136,137.15,137.08,2.916]
[1642521198192,3.166,137.14,137.08,2.916]
[1642521198693,14.1079,137.14,137.08,2.916]
[1642521198897,19.9649,137.14,137.08,2.916]
[1642521199096,19.9649,137.14,137.04,24.7002]
[1642521199295,43.899,137.14,137.05,6.25]
[1642521199696,43.899,137.14,137.02,13.436]
[1642521199998,56.20805272,137.14,137.02,2.916]
[1642521200399,58.26278604,137.14,137.02,2.916]
[1642521200597,58.26278604,137.14,136.99,1.89773135]
[1642521200796,58.26278604,137.14,137.0,46.53599058]
[1642521200997,58.26278604,137.14,137.01,16.9472]
[1642521201198,58.26278604,137.14,137.01,17.1972]
[1642521201400,56.47373332,137.14,137.01,17.1972]
[1642521201599,2.05473332,137.12,137.01,17.1972]
[1642521201797,10.9453,137.09,137.03,36.776709]
[1642521202298,10.9453,137.09,137.04,11.1948]
[1642521203300,48.77591179,137.08,137.04,0.25]
[1642521204299,10.9456,137.08,137.04,0.25]
[1642521204505,25.6812,137.11,137.04,0.25]
[1642521204801,25.6812,137.11,137.04,10.945]
[1642521205000,22.7632,137.11,137.04,10.945]
[1642521205399,58.46959334,137.11,137.04,58.67976819]
[1642521205900,22.5132,137.11,137.06,10.9428]
[1642521206100,41.45173332,137.14,137.06,10.9428]
[1642521206301,38.53373332,137.14,137.06,10.9428]
[1642521206704,43.6074766,137.13,137.06,10.9428]
[1642521207331,11.1928,137.12,137.04,2.918]
[1642521207501,14.1108,137.12,137.04,2.918]
[1642521208501,16.16553332,137.12,137.04,2.918]
[1642521208704,16.16553332,137.12,137.0,2.918]
[1642521208907,46.57007141,137.1,137.0,8.918]
[1642521209105,10.9471,137.08,137.01,10.9472]
[1642521209309,38.85699047,137.07,137.01,10.9472]
[1642521210504,49.80409047,137.07,137.01,10.9472]
[1642521211505,56.89909047,137.07,137.01,10.9472]
[1642521211705,56.89909047,137.07,136.99,2.918]
[1642521211908,2.919,137.06,136.98,10.52]
[1642521212107,10.9489,137.04,136.99,6.25]
[1642521212506,51.43248772,137.04,136.99,6.0]
[1642521212706,51.43248772,137.04,136.98,10.9496]
[1642521212707,0.25,137.03,136.98,10.9496]
[1642521212906,6.558,137.03,136.97,2.919]
[1642521213106,13.8696,137.02,136.97,2.919]
[1642521213506,10.9506,137.02,136.97,2.919]
[1642521213707,45.62751328,137.01,136.97,2.919]
[1642521214207,13.872,137.0,136.94,1.89773135]
[1642521214608,0.25,136.99,136.93,1.89773135]
[1642521214837,7.16,136.99,136.93,1.89773135]
[1642521215009,44.57475684,136.98,136.93,1.89773135]
[1642521215209,0.25,136.97,136.93,1.89773135]
[1642521216206,0.25,136.97,136.9,14.87367514]
[1642521216407,0.25,136.97,136.91,0.25]
[1642521217009,10.9575,136.96,136.91,0.25]
[1642521217507,49.1342618,136.95,136.9,10.956]
[1642521218410,60.0908618,136.95,136.88,48.83824862]
[1642521218610,0.25,136.94,136.88,10.9571]
[1642521220916,0.25,136.94,136.89,6.0]
[1642521221320,0.25,136.94,136.89,16.9566]
[1642521221518,0.25,136.94,136.89,10.9566]
[1642521222742,11.2073,136.94,136.89,10.9566]
[1642521223343,0.25,136.94,136.89,10.9566]
[1642521223542,49.1342618,136.95,136.89,10.9566]
[1642521223743,49.1342618,136.95,136.9,0.25]
[1642521223943,26.046,136.97,136.9,49.48563241]
[1642521224143,2.92,136.99,136.9,49.48563241]
[1642521224346,26.8968,137.01,136.91,19.44]
[1642521224543,23.9768,137.01,136.91,92.19]
[1642521224747,23.9768,137.01,136.92,0.25]
[1642521224947,52.12364297,137.0,136.92,0.25]
[1642521225145,63.07684297,137.0,136.94,10.9517]
[1642521225952,63.07684297,137.0,136.92,0.25]
[1642521226348,63.07684297,137.0,136.91,6.0]
[1642521226949,70.52384297,137.0,136.91,6.0]
[1642521227149,70.52384297,137.0,136.9,6.0]
[1642521227452,70.52384297,137.0,136.9,6.25]
[1642521227649,70.52384297,137.0,136.9,0.25]
[1642521227848,143.27384297,137.0,136.91,6.0]
[1642521228051,143.27384297,137.0,136.9,0.25]
[1642521228661,143.27384297,137.0,136.89,16.9563]
[1642521228853,143.02384297,137.0,136.89,16.9563]
[1642521229451,143.02384297,137.0,136.89,10.9563]
[1642521229652,143.27384297,137.0,136.89,10.9563]
[1642521234054,10.52,136.99,136.88,2.92]
[1642521234254,10.9605,136.96,136.85,1.89773135]
[1642521234455,99.6261,136.95,136.85,1.89773135]
[1642521234857,44.36701307,136.94,136.85,1.89773135]
[1642521235062,2.92,136.93,136.85,1.89773135]
[1642521235256,11.211,136.93,136.85,1.89773135]
[1642521235455,11.211,136.93,136.86,6.0]
[1642521235856,11.211,136.93,136.81,36.58303135]
[1642521235857,11.211,136.93,136.84,6.0]
[1642521236056,11.211,136.93,136.83,6.0]
[1642521236258,11.211,136.93,136.84,2.922]
[1642521236462,83.7108,136.92,136.84,13.8828]
[1642521236657,38.55108084,136.91,136.85,6.0]
[1642521238457,10.9615,136.9,136.85,6.0]
[1642521240758,38.55108084,136.91,136.86,49.29354526]
[1642521241161,38.55108084,136.91,136.87,6.0]
[1642521241765,38.55108084,136.91,136.86,2.922]
[1642521241968,38.55108084,136.91,136.86,10.9594]
[1642521242869,49.51078084,136.91,136.85,10.96]
[1642521243067,49.51078084,136.91,136.85,16.96]
[1642521243869,38.55108084,136.91,136.85,16.96]
[1642521244471,38.55108084,136.91,136.85,53.59687406]
[1642521244971,38.55108084,136.91,136.85,16.96]
[1642521245573,49.51048084,136.91,136.85,16.96]
[1642521245772,49.51048084,136.91,136.85,10.96]
[1642521246874,38.55108084,136.91,136.85,56.85707978]
[1642521247081,38.55108084,136.91,136.86,6.0]
[1642521247575,38.55108084,136.91,136.87,10.9582]
[1642521248799,38.55108084,136.91,136.86,10.9594]
[1642521249200,49.51048084,136.91,136.86,10.9594]
[1642521249406,49.51048084,136.91,136.84,2.922]
[1642521249605,49.51048084,136.91,136.85,6.0]
[1642521249802,49.51048084,136.91,136.84,2.922]
[1642521249999,49.51048084,136.91,136.85,6.0]
[1642521250399,49.51048084,136.91,136.85,16.9599]
[1642521251002,49.51048084,136.91,136.85,10.9599]
[1642521253404,49.51048084,136.91,136.86,6.0]
[1642521253704,49.51048084,136.91,136.86,10.9596]
[1642521256406,38.55108084,136.91,136.86,10.9596]
[1642521257706,38.55108084,136.91,136.87,6.0]
[1642521257909,38.55108084,136.91,136.87,10.9589]
[1642521258509,49.51048084,136.91,136.85,6.0]
[1642521258713,55.99648084,136.91,136.84,4.81973135]
[1642521259312,55.99648084,136.91,136.84,2.922]
[1642521259511,55.99648084,136.91,136.84,13.8831]
[1642521260610,55.99648084,136.91,136.84,10.9611]
[1642521260812,49.51048084,136.91,136.84,10.9611]
[1642521261212,49.51048084,136.91,136.84,52.90009889]
[1642521261911,49.51048084,136.91,136.86,10.9593]
[1642521263714,49.51048084,136.91,136.85,7.89773135]
[1642521263715,49.51048084,136.91,136.85,18.85803135]
[1642521263920,49.51048084,136.91,136.85,1.89773135]
[1642521269923,49.51048084,136.91,136.85,12.85813135]
[1642521270727,49.51048084,136.91,136.85,15.78013135]
[1642521270925,2.922,136.94,136.85,26.30013135]
[1642521271125,2.05473332,136.95,136.86,7.71666861]
[1642521271331,2.05473332,136.95,136.88,10.9562]
[1642521271526,2.05473332,136.95,136.89,8.92]
[1642521271726,2.05473332,136.96,136.89,8.92]
[1642521271926,48.21838975,136.95,136.89,10.63666861]
[1642521272126,48.21838975,136.95,136.89,45.434]
[1642521272326,48.21838975,136.95,136.9,10.9542]
[1642521272527,48.21838975,136.95,136.91,6.0]
[1642521272828,48.21838975,136.95,136.9,10.9542]
[1642521274129,59.17508975,136.95,136.89,10.9571]
[1642521274330,59.17508975,136.95,136.89,16.9571]
[1642521274530,59.17508975,136.95,136.88,1.89773135]
[1642521274729,2.92,136.94,136.88,1.89773135]
[1642521274958,2.92,136.94,136.87,1.89773135]
[1642521275157,10.9597,136.93,136.87,1.89773135]
[1642521275357,2.92,136.92,136.87,1.89773135]
[1642521275556,11.521,136.92,136.87,1.89773135]
[1642521276158,11.521,136.92,136.84,1.89773135]
[1642521276857,35.28527563,136.9,136.84,1.89773135]
[1642521277057,35.28527563,136.9,136.84,12.85903135]
[1642521277257,35.28527563,136.9,136.84,10.9613]
[1642521278562,46.24637563,136.9,136.84,10.9613]
[1642521278762,46.24637563,136.9,136.83,10.962]
[1642521281067,46.24637563,136.9,136.84,6.0]
[1642521281267,46.24637563,136.9,136.84,16.961]
[1642521281469,46.24637563,136.9,136.84,10.961]
[1642521281867,46.24637563,136.9,136.85,6.0]
[1642521282769,35.28527563,136.9,136.85,16.9604]
[1642521282969,2.05473332,136.95,136.85,16.9604]
[1642521283170,2.05473332,136.95,136.86,10.52]
[1642521283369,2.05473332,136.95,136.86,12.23666861]
[1642521283570,2.05473332,136.95,136.86,10.52]
[1642521283770,2.05473332,136.96,136.86,10.52]
[1642521283970,2.92,136.95,136.86,10.52]
[1642521284571,48.95861943,136.94,136.86,10.9596]
[1642521284771,2.92,136.93,136.86,10.9596]
[1642521285471,10.96,136.92,136.85,19.8803]
[1642521285671,10.96,136.92,136.84,2.922]
[1642521285872,10.96,136.92,136.84,8.922]
[1642521286119,2.922,136.91,136.84,7.89773135]
[1642521286573,2.922,136.92,136.84,7.89773135]
[1642521286777,10.9604,136.91,136.84,18.85883135]
[1642521287072,10.9604,136.91,136.84,16.9611]
[1642521287673,25.5311,136.93,136.84,16.9611]
[1642521287873,33.5684,136.93,136.84,16.9611]
[1642521288075,33.5684,136.93,136.84,19.8831]
[1642521288274,33.5684,136.93,136.85,10.52]
[1642521288476,33.5684,136.93,136.86,2.922]
[1642521288774,33.5684,136.93,136.86,19.8812]
[1642521288775,0.25,136.92,136.86,19.8812]
[1642521288976,11.2099,136.92,136.86,16.9592]
[1642521290376,11.2099,136.92,136.86,6.0]
[1642521291879,11.2099,136.92,136.85,2.922]
[1642521292180,14.1319,136.92,136.84,10.9611]
[1642521293077,11.3613,136.9,136.84,10.9611]
[1642521293278,40.66941917,136.89,136.84,10.9611]
[1642521294487,0.25,136.88,136.82,1.89773135]
[1642521294678,2.922,136.87,136.82,1.89773135]
[1642521295077,0.25,136.86,136.82,1.89773135]
[1642521295477,10.9649,136.85,136.8,1.89773135]
[1642521295678,43.01173476,136.84,136.8,1.89773135]
[1642521296582,43.01173476,136.84,136.79,1.89773135]
[1642521296779,43.01173476,136.84,136.79,8.14773135]
[1642521296981,43.01173476,136.84,136.79,2.14773135]
[1642521297580,10.9649,136.85,136.8,16.9646]
[1642521297780,11.2136,136.86,136.81,0.25]
[1642521297981,2.923,136.88,136.8,6.0]
[1642521298183,0.25,136.87,136.81,0.25]
[1642521299484,43.52870833,136.88,136.81,11.2136]
[1642521299981,43.52870833,136.88,136.82,6.0]
[1642521300182,0.25,136.87,136.82,6.0]
[1642521300582,0.25,136.87,136.83,10.9621]
[1642521300783,0.25,136.87,136.81,0.25]
[1642521300983,0.25,136.87,136.81,6.25]
[1642521301183,0.25,136.87,136.8,2.923]
[1642521301384,0.25,136.87,136.79,4.82073135]
[1642521301584,0.25,136.87,136.8,6.0]
[1642521301982,11.2127,136.87,136.8,10.9643]
[1642521302183,11.2127,136.87,136.79,4.82073135]
[1642521302584,11.2127,136.87,136.8,0.25]
[1642521303182,11.2127,136.87,136.8,6.25]
[1642521303390,11.2127,136.87,136.79,2.923]
[1642521303584,2.923,136.86,136.78,1.89773135]
[1642521303785,10.9668,136.84,136.78,1.89773135]
[1642521303985,13.8898,136.84,136.78,1.89773135]
[1642521304186,0.25,136.83,136.78,1.89773135]
[1642521304387,39.19231414,136.83,136.78,1.89773135]
[1642521304792,10.9674,136.82,136.76,12.86473135]
[1642521304989,10.9674,136.82,136.77,0.25]
[1642521305186,10.9674,136.82,136.76,12.86473135]
[1642521305388,10.9674,136.82,136.76,1.89773135]
[1642521306090,10.9674,136.82,136.75,15.78903135]
[1642521306488,0.25,136.81,136.75,15.78903135]
[1642521306689,10.9689,136.8,136.75,12.86603135]
[1642521306891,10.9689,136.8,136.75,1.89773135]
[1642521307091,0.25,136.79,136.73,1.89773135]
[1642521307693,10.9705,136.78,136.73,1.89773135]
[1642521307893,40.891961,136.77,136.73,1.89773135]
[1642521308092,41.141961,136.77,136.73,1.89773135]
[1642521308692,2.924,136.76,136.71,4.82173135]
[1642521308892,10.9723,136.75,136.71,4.82173135]
[1642521309093,11.2223,136.75,136.71,4.82173135]
[1642521309494,10.9723,136.75,136.71,4.82173135]
[1642521309796,2.924,136.76,136.71,2.924]
[1642521309994,10.9717,136.76,136.71,2.924]
[1642521310192,10.9717,136.76,136.72,0.25]
[1642521310396,40.891961,136.77,136.72,0.25]
[1642521310794,40.891961,136.77,136.72,11.2207]
[1642521311397,40.891961,136.77,136.73,6.0]
[1642521311595,40.891961,136.77,136.69,39.491]
[1642521311996,40.891961,136.77,136.7,6.0]
[1642521312198,40.891961,136.77,136.7,52.92253884]
[1642521312604,40.891961,136.77,136.73,10.9701]
[1642521312801,40.891961,136.77,136.7,52.92253884]
[1642521313003,51.862661,136.77,136.71,0.25]
[1642521313201,0.25,136.76,136.71,0.25]
[1642521313602,0.25,136.76,136.71,10.9717]
[1642521313802,0.25,136.76,136.69,2.924]
[1642521314002,0.25,136.76,136.7,6.0]
[1642521315502,11.2217,136.76,136.7,16.9725]
[1642521316627,11.2217,136.76,136.69,2.924]
[1642521316828,16.8507,136.76,136.7,0.25]
[1642521317128,19.7747,136.76,136.7,0.25]
[1642521317828,19.7747,136.76,136.67,2.924]
[1642521318028,19.7747,136.76,136.66,1.89773135]
[1642521318228,42.444,136.76,136.66,1.89773135]
[1642521319128,42.444,136.76,136.64,13.9005]
[1642521319329,42.444,136.76,136.65,0.25]
[1642521319729,42.444,136.76,136.63,4.64254726]
[1642521319928,42.444,136.76,136.63,1.71654726]
[1642521320134,10.52,136.75,136.63,1.71654726]
[1642521320329,10.9782,136.72,136.63,12.69444726]
[1642521320530,2.926,136.71,136.62,114.626]
[1642521320732,46.5053365,136.7,136.62,111.7]
[1642521320930,2.926,136.69,136.62,111.7]
[1642521321132,2.926,136.69,136.62,155.2348106]
[1642521321332,46.5053365,136.7,136.63,2.927]
[1642521321742,46.5053365,136.7,136.64,1.96654726]
[1642521321931,46.5053365,136.7,136.65,2.926]
[1642521322134,46.5053365,136.7,136.66,6.0]
[1642521322332,46.5053365,136.7,136.66,16.9753]
[1642521329441,26.7532,136.74,136.66,16.9753]
[1642521329442,2.926,136.74,136.66,16.9753]
[1642521329641,24.7467,136.75,136.69,10.9719]
[1642521330041,0.25,136.74,136.69,10.9719]
[1642521330442,42.14317239,136.74,136.69,10.9719]
[1642521330640,42.14317239,136.74,136.7,6.0]
[1642521330845,42.14317239,136.74,136.7,16.9717]
[1642521332542,42.14317239,136.74,136.65,50.0239]
[1642521332743,2.926,136.73,136.66,6.0]
[1642521333144,0.25,136.72,136.64,6.0]
[1642521333347,0.25,136.72,136.64,8.14773135]
[1642521333945,11.2253,136.72,136.66,10.9754]
[1642521334544,11.2253,136.72,136.64,2.14773135]
[1642521334744,11.2253,136.72,136.64,0.25]
[1642521335347,34.4236,136.72,136.64,6.25]
[1642521335547,34.4236,136.72,136.64,11.2264]
[1642521335954,2.926,136.71,136.65,6.0]
[1642521336150,10.9769,136.7,136.65,6.0]
[1642521336350,43.84092384,136.69,136.64,10.9764]
[1642521336751,0.25,136.68,136.65,6.0]
[1642521336951,6.06439994,136.67,136.63,16.9779]
[1642521338155,6.06439994,136.67,136.62,10.9787]
[1642521338353,6.06439994,136.67,136.62,17.2287]
[1642521340656,6.06439994,136.67,136.62,20.1557]
[1642521341557,6.06439994,136.67,136.62,17.2287]
[1642521341759,6.06439994,136.67,136.63,48.76311057]
[1642521341958,6.06439994,136.67,136.64,10.9762]
[1642521342156,43.84092384,136.69,136.65,2.927]
[1642521342386,2.927,136.74,136.65,13.447]
[1642521342560,124.0542,136.75,136.66,6.25]
[1642521342756,124.0542,136.75,136.67,2.926]
[1642521342958,135.0269,136.75,136.69,10.9729]
[1642521343161,60.4671,136.75,136.7,0.25]
[1642521343359,44.64430437,136.74,136.7,6.25]
[1642521343557,24.0,136.72,136.69,6.0]
[1642521343763,3.176,136.71,136.65,1.89773135]
[1642521344157,10.9767,136.7,136.66,1.89773135]
[1642521344557,45.13732752,136.69,136.66,1.89773135]
[1642521344757,0.25,136.71,136.66,1.89773135]
[1642521345157,0.25,136.73,136.63,10.52]
[1642521345359,2.926,136.74,136.66,10.9751]
[1642521345557,52.4204,136.75,136.67,6.0]
[1642521345758,45.52796187,136.74,136.67,6.25]
[1642521346460,45.52796187,136.74,136.67,0.25]
[1642521346659,0.25,136.73,136.68,6.0]
[1642521346859,0.25,136.73,136.67,0.25]
[1642521347560,0.25,136.73,136.69,10.9726]
[1642521348461,11.2242,136.73,136.67,10.9745]
[1642521348669,2.926,136.72,136.67,10.9745]
[1642521348970,2.926,136.72,136.66,2.926]
[1642521349166,38.69254183,136.71,136.66,2.926]
[1642521349368,38.69254183,136.71,136.65,1.89773135]
[1642521349566,2.926,136.7,136.66,6.0]
[1642521349767,0.25,136.69,136.65,1.89773135]
[1642521349991,0.25,136.69,136.64,10.9765]
[1642521350390,0.25,136.69,136.63,1.89773135]
[1642521350592,19.4036,136.69,136.63,1.89773135]
[1642521350790,48.62703364,136.68,136.63,1.89773135]
[1642521350991,48.62703364,136.68,136.63,38.56879707]
[1642521351191,48.62703364,136.68,136.62,1.89773135]
[1642521351595,67.30123364,136.68,136.62,12.87613135]
[1642521351791,0.25,136.67,136.62,12.87613135]
[1642521352192,0.25,136.67,136.62,10.9784]
[1642521352592,59.60523364,136.68,136.62,10.9784]